bitfinex/quotes_ETHUSD_20250924
["timestamp","ask_amount","ask_price","bid_price","bid_amount"]
[1758737625661,0.2359,4180.1,4179.5,0.48074055]
[1758737626352,0.6639,4180.0,4179.5,0.48074055]
[1758737626549,0.2359,4179.9,4179.5,0.48074055]
[1758737626744,3.0,4180.3,4179.5,0.48074055]
[1758737626950,0.2359,4179.9,4179.5,0.48074055]
[1758737627257,3.0,4180.3,4179.5,0.002]
[1758737627467,3.0,4179.7,4179.5,0.002]
[1758737627950,0.6639,4179.6,4179.5,0.002]
[1758737629555,3.0,4179.7,4179.5,0.002]
[1758737629726,0.6639,4179.6,4179.5,0.002]
[1758737629933,0.2359,4179.6,4179.5,0.002]
[1758737630327,3.0,4179.7,4179.5,0.002]
[1758737630748,0.6111159,4179.9,4179.5,0.002]
[1758737630927,3.0,4179.8,4179.5,0.002]
[1758737632941,0.6639,4179.7,4179.5,0.002]
[1758737633463,0.6639,4179.6,4179.5,0.002]
[1758737634272,0.2359,4179.6,4179.5,0.002]
[1758737635175,4.8152159,4179.9,4179.5,0.4612]
[1758737635176,0.3752159,4179.9,4179.5,0.4612]
[1758737635341,0.428,4180.5,4179.5,0.4612]
[1758737635342,0.428,4180.5,4179.6,0.02392573]
[1758737635674,0.428,4180.5,4179.7,2.3925162]
[1758737635675,0.1192,4180.0,4179.7,2.3925162]
[1758737635869,0.1192,4180.0,4179.8,0.48312458]
[1758737636566,0.1192,4180.0,4179.9,2.85160173]
[1758737636927,0.1192,4180.0,4179.9,2.39240173]
[1758737637345,0.1192,4180.0,4179.9,3.33248598]
[1758737639567,0.1192,4180.0,4179.9,2.87328598]
[1758737640681,0.1192,4180.0,4179.9,3.30468598]
[1758737640882,0.4673,4180.9,4180.1,2.39227041]
[1758737640883,0.2289,4180.9,4180.1,2.39227041]
[1758737641051,0.1192,4180.3,4180.2,2.7466078]
[1758737641548,0.1192,4180.3,4180.2,0.33045547]
[1758737641757,0.1192,4180.3,4179.9,2.87324631]
[1758737642589,0.1192,4180.3,4180.0,2.39233704]
[1758737644263,0.1192,4180.3,4180.1,2.39228297]
[1758737644487,0.1192,4180.3,4180.0,2.39233057]
[1758737644684,0.1192,4180.3,4179.9,0.48088425]
[1758737644896,0.1192,4180.3,4180.0,0.44928842]
[1758737645093,0.1192,4180.3,4180.1,2.39228464]
[1758737645267,0.1192,4180.3,4180.2,2.84755233]
[1758737646288,0.1192,4180.3,4180.2,17.34755233]
[1758737646454,0.1192,4180.3,4180.2,17.32363003]
[1758737646662,0.1192,4180.3,4180.2,19.34015488]
[1758737647404,0.1192,4180.7,4180.2,16.94792485]
[1758737647564,0.1192,4180.7,4180.3,4.46432172]
[1758737647893,0.1192,4180.7,4180.6,2.39200114]
[1758737648071,0.1192,4180.7,4180.6,2.41592115]
[1758737648282,0.1192,4180.7,4180.6,3.34076482]
[1758737650877,0.001,4181.1,4181.0,4.0551413]
[1758737651783,0.001,4181.1,4181.0,8.0671413]
[1758737652469,0.001,4181.1,4181.0,3.6237413]
[1758737652707,0.7079,4181.1,4180.6,0.92484367]
[1758737652912,0.8261,4181.0,4180.7,4.011]
[1758737653073,0.5894,4181.0,4180.9,2.39182951]
[1758737653688,0.8261,4181.0,4180.8,2.39187011]
[1758737653902,0.8261,4181.0,4180.9,0.64028701]
[1758737654111,0.8261,4181.0,4180.9,3.03211652]
[1758737654604,0.3559,4181.0,4180.9,3.03211652]
[1758737654992,0.3559,4181.0,4180.9,0.64028701]
[1758737655205,0.5894,4181.0,4180.9,0.64028701]
[1758737655503,0.7069,4181.0,4179.9,4.014]
[1758737655670,0.7069,4180.9,4180.1,2.39227553]
[1758737655867,0.7069,4180.8,4180.2,2.39221751]
[1758737656086,0.4702,4180.8,4180.2,3.2720788]
[1758737656285,0.2367,4180.7,4180.2,3.2720788]
[1758737656468,0.7069,4180.6,4180.2,0.87986129]
[1758737656672,0.2367,4180.5,4180.2,0.87986129]
[1758737657123,0.2367,4180.5,4180.3,2.39217281]
[1758737657279,0.4702,4180.6,4180.3,2.39217281]
[1758737657476,0.5904,4181.1,4179.9,4.016]
[1758737657675,0.4702,4180.5,4179.9,4.016]
[1758737657995,0.2367,4180.4,4179.9,4.016]
[1758737658179,0.7069,4180.3,4180.0,2.87311724]
[1758737658379,0.4702,4180.3,4180.0,2.8731121]
[1758737658576,0.2367,4180.2,4180.1,2.39228726]
[1758737658771,0.2367,4180.2,4180.0,0.4808]
[1758737659177,0.2367,4180.2,4180.1,2.39228726]
[1758737659493,0.2367,4180.2,4180.1,1.00735346]
[1758737659899,0.2367,4180.2,4180.1,2.39228726]
[1758737660077,0.2367,4180.5,4180.1,2.39228726]
[1758737660278,0.7069,4180.4,4180.2,2.39222468]
[1758737660478,0.2367,4180.3,4180.2,2.39222468]
[1758737661409,0.2367,4181.0,4180.2,2.8480321]
[1758737661609,0.2367,4181.0,4180.4,2.39207104]
[1758737661814,0.2367,4181.0,4180.5,2.41597058]
[1758737662013,0.001,4181.1,4180.7,2.3919109]
[1758737662180,0.001,4181.1,4180.8,2.41579393]
[1758737662510,0.001,4181.1,4180.9,2.39178433]
[1758737662711,0.001,4181.1,4181.0,0.02391772]
[1758737663811,0.2377,4181.1,4181.0,0.02391772]
[1758737665119,0.2377,4181.1,4180.6,14.5]
[1758737665296,0.1192,4180.9,4180.6,16.8920003]
[1758737665497,0.1192,4180.9,4180.6,17.8255722]
[1758737666124,0.1192,4180.9,4180.6,15.8654719]
[1758737666287,0.1192,4180.9,4180.6,0.9335719]
[1758737666991,0.1192,4180.9,4180.7,2.3919319]
[1758737667599,0.1192,4180.9,4180.8,0.02391886]
[1758737669214,0.1192,4180.9,4180.8,2.41580558]
[1758737669409,0.1202,4181.1,4180.9,2.39182951]
[1758737669617,0.1202,4181.1,4181.0,0.02391772]
[1758737669933,0.1202,4181.1,4180.8,4.78316262]
[1758737670134,0.1202,4181.1,4180.9,2.39181695]
[1758737670299,0.1202,4181.1,4180.8,2.39186611]
[1758737670839,0.1202,4181.1,4180.9,4.012]
[1758737673444,0.3569,4181.1,4180.9,4.012]
[1758737674554,0.1202,4181.1,4180.6,14.5]
[1758737674719,0.1202,4181.1,4180.5,2.39202045]
[1758737674720,0.1192,4180.9,4180.5,2.39202045]
[1758737674922,0.2367,4180.8,4180.6,4.01]
[1758737676850,0.2367,4180.8,4180.6,6.40198816]
[1758737678725,0.2367,4180.8,4180.6,4.01]
[1758737679047,0.2367,4180.8,4180.6,6.40199352]
[1758737679452,0.2367,4180.8,4180.6,4.01]
[1758737680146,0.2367,4180.8,4180.7,2.39194393]
[1758737680352,0.2367,4180.8,4180.6,6.4019936]
[1758737680550,0.2367,4180.8,4180.6,4.01]
[1758737680725,0.1192,4180.9,4180.7,4.008]
[1758737681049,0.001,4181.1,4180.6,4.008]
[1758737681249,0.7069,4181.0,4180.6,4.008]
[1758737681451,0.7069,4180.9,4180.6,4.008]
[1758737681653,0.7069,4180.8,4180.6,4.008]
[1758737681854,0.2426,4180.7,4180.6,4.008]
[1758737682351,0.001,4181.1,4180.6,4.008]
[1758737682527,0.6792,4181.0,4180.6,6.39996007]
[1758737682726,0.001,4181.1,4180.1,0.002]
[1758737682938,0.1192,4180.6,4180.1,4.01]
[1758737683117,0.6792,4180.5,4180.1,4.01]
[1758737683313,0.1192,4180.3,4180.1,4.01]
[1758737683518,0.6792,4180.2,4180.1,4.01]
[1758737684824,0.6792,4180.2,4180.1,0.002]
[1758737685454,0.1192,4180.3,4180.1,0.002]
[1758737685807,0.6792,4180.2,4180.1,0.002]
[1758737687626,0.6792,4180.2,4179.7,0.002]
[1758737687959,0.1192,4179.7,4178.9,2.39296178]
[1758737688161,0.1192,4179.2,4178.6,4.2969]
[1758737688337,0.1192,4179.2,4178.7,14.5]
[1758737688654,0.1192,4179.2,4178.6,4.2969]
[1758737689171,0.1192,4179.5,4179.4,2.39267735]
[1758737689385,0.1192,4179.5,4179.4,3.3722418]
[1758737689808,0.2426,4180.4,4179.6,2.39255004]
[1758737689964,0.1192,4180.0,4179.7,0.45582516]
[1758737690155,0.1192,4180.0,4179.9,2.39240173]
[1758737690355,0.1192,4180.0,4179.9,2.84822574]
[1758737690556,0.1192,4180.0,4179.9,2.41632574]
[1758737693310,0.1192,4180.0,4179.8,2.39244444]
[1758737693474,0.1192,4180.0,4179.8,4.76523367]
[1758737693674,0.1192,4180.0,4179.9,2.39240173]
[1758737694479,0.1192,4180.0,4179.9,2.41632574]
[1758737694685,0.1192,4180.0,4179.9,2.84822574]
[1758737694996,0.1192,4180.3,4180.2,2.39223003]
[1758737696674,0.1192,4180.3,4180.2,3.31487678]
[1758737696881,0.1192,4180.3,4180.2,3.74677678]
[1758737697113,0.1192,4180.3,4180.2,3.31487678]
[1758737698525,0.001,4181.1,4180.6,2.39199231]
[1758737698726,0.6792,4181.0,4180.7,0.02391943]
[1758737698897,0.1192,4180.5,4180.4,6.40109976]
[1758737699229,0.1192,4180.5,4180.4,4.009]
[1758737699829,0.3618,4180.5,4180.4,4.009]
[1758737700326,0.8065,4180.5,4180.0,2.39232926]
[1758737700524,0.25753214,4181.1,4179.9,4.009]
[1758737700850,0.1192,4180.0,4179.9,4.009]
[1758737701529,0.1192,4180.0,4179.9,6.40139775]
[1758737702329,0.1192,4180.3,4180.0,2.39234449]
[1758737702627,0.1192,4180.3,4180.1,0.46532287]
[1758737702828,0.1192,4180.3,4180.2,4.009]
[1758737703030,0.1192,4180.3,4180.2,4.4504]
[1758737703421,0.1192,4180.3,4180.2,6.84263003]
[1758737703599,0.1192,4180.7,4180.6,2.39200114]
[1758737704099,0.1192,4180.7,4180.6,2.41592115]
[1758737704499,0.1202,4180.7,4180.6,2.41592115]
[1758737705108,0.1202,4180.7,4180.6,16.91592115]
[1758737705342,0.1202,4180.7,4180.6,16.89200114]
[1758737706689,0.1202,4180.7,4180.6,19.7068487]
[1758737706690,0.001,4180.7,4180.6,19.7068487]
[1758737707459,0.001,4180.7,4180.6,20.4988487]
[1758737707661,0.001,4180.7,4180.6,20.6180487]
[1758737711849,0.001,4181.6,4181.5,3.1834863]
[1758737712026,0.001,4181.6,4181.5,7.1904863]
[1758737712235,0.001,4181.6,4181.5,8.91719098]
[1758737712471,0.001,4181.6,4181.5,23.41719098]
[1758737717469,0.001,4181.6,4181.5,23.41619098]
[1758737717670,0.001,4181.6,4181.5,25.40919098]
[1758737723444,0.001,4181.6,4181.5,25.40619098]
[1758737724280,0.001,4181.6,4181.5,24.95619098]
[1758737724946,0.001,4181.6,4181.5,25.40619098]
[1758737726398,0.001,4181.6,4181.5,18.16819098]
[1758737726550,0.4447,4181.9,4181.8,2.39131474]
[1758737726750,0.4447,4181.9,4181.8,9.57760089]
[1758737727056,0.4447,4181.9,4181.8,9.69680089]
[1758737727270,0.4447,4181.9,4181.8,24.19680089]
[1758737727475,0.4447,4181.9,4181.8,26.18880089]
[1758737728063,0.4447,4181.9,4181.8,20.19380089]
[1758737728266,0.4447,4181.9,4181.8,26.18880089]
[1758737728666,0.6755,4181.9,4181.8,26.18880089]
[1758737729306,0.6755,4181.9,4181.8,20.19380089]
[1758737729482,0.6755,4181.9,4181.8,19.00251474]
[1758737729674,0.6755,4181.9,4181.8,23.00451474]
[1758737732601,0.6755,4181.9,4181.8,6.51351474]
[1758737733098,0.6755,4181.9,4181.8,21.01351474]
[1758737739596,0.6765,4181.9,4181.8,21.01351474]
[1758737740330,0.001,4181.9,4181.8,22.34754257]
[1758737740950,0.6765,4181.9,4181.8,22.34354257]
[1758737743354,0.7082,4181.9,4181.6,0.002]
[1758737743538,0.7082,4181.9,4181.6,0.956]
[1758737743739,0.7072,4181.8,4181.7,2.39137193]
[1758737744538,0.001,4181.9,4181.8,2.39131474]
[1758737744722,0.001,4181.9,4181.8,6.97557478]
[1758737745647,0.001,4181.9,4181.8,21.47557478]
[1758737745974,0.001,4181.9,4181.8,21.70477478]
[1758737747423,0.001,4181.9,4181.8,22.49677478]
[1758737748326,0.001,4181.9,4181.8,22.26757478]
[1758737748525,0.001,4181.9,4181.8,22.49677478]
[1758737748729,0.001,4181.9,4181.8,22.26757478]
[1758737749657,0.7082,4181.9,4181.8,20.90031474]
[1758737750240,0.7082,4181.9,4181.8,6.40131474]
[1758737752880,1.08317241,4181.9,4181.8,6.40131474]
[1758737753581,1.08317241,4181.9,4181.7,2.39137193]
[1758737753892,0.7072,4181.8,4181.6,0.002]
[1758737754047,0.7072,4181.8,4181.6,2.39338859]
[1758737754242,0.7072,4181.7,4181.6,0.002]
[1758737754568,0.7072,4181.7,4181.6,2.39342911]
[1758737757042,0.7072,4181.7,4181.6,0.002]
[1758737757275,1.08220833,4181.7,4181.6,0.002]
[1758737757590,0.7072,4181.7,4181.6,0.002]
[1758737759188,0.7072,4181.7,4181.2,0.002]
[1758737759920,3.7072,4181.7,4181.2,0.002]
[1758737760214,0.7072,4181.7,4181.2,0.002]
[1758737760575,0.80312016,4181.7,4181.2,0.002]
[1758737760892,4.993,4181.6,4181.2,0.002]
[1758737761213,4.993,4181.6,4181.1,0.002]
[1758737761618,0.6995,4181.5,4181.1,0.002]
[1758737764415,0.6995,4181.5,4180.8,0.002]
[1758737764997,0.1192,4180.8,4179.5,0.1192]
[1758737765193,3.6995,4180.7,4179.5,0.25119636]
[1758737765429,0.1192,4180.0,4179.9,2.39240173]
[1758737767902,0.1192,4180.0,4179.9,3.06240173]
[1758737768102,0.1192,4180.0,4179.9,2.62320173]
[1758737768915,0.1192,4180.0,4179.9,17.12320173]
[1758737769955,0.1192,4180.0,4179.9,16.89240173]
[1758737771832,0.1192,4180.0,4179.9,2.39240173]
[1758737772437,0.1192,4180.0,4179.9,16.89240173]
[1758737773969,3.0,4179.9,4178.5,2.39319136]
[1758737774131,0.1192,4179.7,4178.9,4.007]
[1758737774463,0.6703,4179.6,4179.2,14.5]
[1758737774798,0.1192,4179.2,4179.1,2.4128597]
[1758737774934,0.3514,4179.2,4179.1,2.4128597]
[1758737775134,0.7895,4179.2,4179.1,2.4128597]
[1758737776848,0.91191613,4179.2,4179.1,2.4128597]
[1758737777267,0.47381613,4179.2,4179.1,2.4128597]
[1758737777468,1.28711587,4179.2,4179.1,0.02]
[1758737779135,0.91191613,4179.2,4179.1,0.02]
[1758737780700,0.91191613,4179.2,4178.3,2.39330631]
[1758737780866,0.1192,4178.6,4178.4,2.39325469]
[1758737781068,0.1192,4178.4,4178.3,2.39331785]
[1758737781312,0.6703,4178.6,4178.2,2.39337513]
[1758737781521,0.6703,4178.5,4178.1,0.02]
[1758737781997,0.6703,4178.5,4178.1,2.41342691]
[1758737782199,0.6703,4178.4,4178.1,0.02]
[1758737782404,3.0,4178.2,4178.1,2.41339256]
[1758737782569,3.6703,4178.2,4178.1,2.41339256]
[1758737784806,3.6703,4178.2,4172.0,1.93612026]
[1758737784807,0.1192,4178.1,4177.1,0.02]
[1758737784983,4.994,4178.2,4177.6,2.39369354]
[1758737785181,4.994,4178.2,4177.1,0.02]
[1758737785182,0.6703,4178.0,4177.5,2.39377384]
[1758737785402,0.6703,4177.9,4177.6,2.39371474]
[1758737785604,3.0,4177.7,4177.6,2.39371474]
[1758737785804,0.1192,4177.6,4177.1,14.52]
[1758737786003,3.2322,4177.7,4177.6,2.39371888]
[1758737786305,3.6703,4177.7,4177.5,2.39377127]
[1758737786505,3.4381,4177.7,4177.5,2.39377127]
[1758737786678,0.6703,4177.6,4177.5,2.39377127]
[1758737787092,0.2322,4177.6,4177.5,2.39377127]
[1758737787407,3.0,4177.7,4177.6,2.39371888]
[1758737788576,3.2322,4177.7,4177.6,2.39371888]
[1758737788903,4.04566563,4177.7,4177.6,2.39371888]
[1758737789410,3.2322,4177.7,4177.6,2.39371888]
[1758737792578,3.60756563,4177.7,4177.6,2.39371888]
[1758737793501,3.37536563,4177.7,4177.6,2.39571888]
[1758737796038,3.60756563,4177.7,4177.6,2.39571888]
[1758737796326,4.04566563,4177.7,4177.6,2.39571888]
[1758737796848,3.37536563,4177.7,4177.6,2.39571888]
[1758737800997,4.38036563,4177.7,4177.6,2.39571888]
[1758737801198,3.37536563,4177.7,4177.6,2.39571888]
[1758737801404,7.38036563,4177.7,4177.6,3.06081888]
[1758737801599,3.0,4177.7,4177.6,3.60867616]
[1758737801806,3.0,4177.7,4177.6,18.10867616]
[1758737803918,0.1192,4178.1,4178.0,2.3934897]
[1758737804137,1.395,4178.4,4178.0,2.3934897]
[1758737804356,0.1192,4178.3,4178.2,2.39337513]
[1758737804562,0.1192,4178.3,4178.2,2.61877513]
[1758737805362,3.1192,4178.3,4178.2,2.61877513]
[1758737806055,3.1192,4178.3,4178.2,2.39337513]
[1758737806855,3.8059,4178.3,4178.2,2.39337513]
[1758737807464,3.3553,4178.3,4178.2,2.39337513]
[1758737808959,3.1192,4178.3,4178.2,2.39337513]
[1758737809567,3.3553,4178.3,4178.2,2.39337513]
[1758737809936,3.1192,4178.3,4178.2,2.39337513]
[1758737815341,7.1222,4178.3,4178.2,2.39337513]
[1758737818873,7.1212,4178.3,4178.2,2.39337513]
[1758737819456,3.1192,4178.3,4178.2,2.39337513]
[1758737819659,7.1202,4178.3,4178.2,3.07647513]
[1758737820063,3.1192,4178.3,4178.2,3.07647513]
[1758737820258,7.1202,4178.3,4178.2,3.07647513]
[1758737820883,7.1202,4178.3,4178.2,2.39337513]
[1758737821553,3.1192,4178.3,4178.2,2.39337513]
[1758737821748,0.37532353,4178.5,4178.4,2.39326057]
[1758737821971,4.1202,4178.7,4178.6,2.39314602]
[1758737822171,4.001,4179.0,4178.9,2.39297422]
[1758737822372,7.001,4179.0,4178.9,2.39297422]
[1758737823175,0.1192,4179.1,4179.0,2.39291696]
[1758737823384,0.5632,4179.1,4179.0,2.64764612]
[1758737823570,0.1192,4179.1,4179.0,2.64764612]
[1758737823758,3.1192,4179.1,4179.0,2.41684612]
[1758737824268,3.1192,4179.1,4179.0,2.39291696]
[1758737825893,0.1192,4179.1,4179.0,2.39291696]
[1758737826074,3.49443565,4179.1,4179.0,2.39291696]
[1758737826999,4.19933565,4179.1,4179.0,2.39291696]
[1758737829403,3.8251,4179.1,4179.0,2.39291696]
[1758737830398,3.8251,4179.1,4178.7,2.39307979]
[1758737830698,7.7059,4179.0,4178.9,2.39293462]
[1758737830860,3.1192,4178.9,4178.8,2.39301441]
[1758737831066,0.8241,4178.9,4178.8,2.39301441]
[1758737831261,3.8241,4178.9,4178.8,2.39301441]
[1758737831594,3.8241,4178.9,4178.0,4.001]
[1758737831798,3.0,4178.7,4178.6,2.39314602]
[1758737832469,0.001,4179.1,4179.0,2.39291696]
[1758737832674,7.002,4179.1,4179.0,2.39291696]
[1758737832903,7.7075,4179.1,4179.0,2.39291696]
[1758737833309,3.7065,4179.1,4179.0,2.39291696]
[1758737833480,3.2446,4179.1,4179.0,2.39291696]
[1758737833686,7.2476,4179.1,4179.0,2.39291696]
[1758737833884,3.37626892,4179.1,4179.0,2.39291696]
[1758737834079,7.37926892,4179.1,4179.0,2.39291696]
[1758737834275,3.37626892,4179.1,4179.0,2.39291696]
[1758737834504,3.1202,4179.1,4179.0,3.5703039]
[1758737834685,3.1202,4179.1,4179.0,3.08931696]
[1758737835003,3.1202,4179.1,4179.0,2.62131696]
[1758737835207,3.1202,4179.1,4179.0,2.39291696]
[1758737835592,3.8257,4179.1,4179.0,2.39291696]
[1758737836715,3.1202,4179.1,4179.0,2.39291696]
[1758737836878,3.8257,4179.1,4179.0,2.39291696]
[1758737837913,4.20095486,4179.1,4179.0,2.39291696]
[1758737838615,3.0,4179.0,4178.9,2.39297422]
[1758737838814,7.7085,4179.0,4178.9,2.39297422]
[1758737844518,3.0,4178.9,4178.3,2.39331785]
[1758737844679,0.1192,4178.4,4178.1,2.39343242]
[1758737844884,0.1192,4178.4,4177.8,2.39360428]
[1758737844885,0.3628,4178.4,4177.9,4.001]
[1758737845304,0.1192,4178.4,4178.0,0.468]
[1758737845509,0.1192,4178.4,4178.2,2.39337513]
[1758737845723,0.1192,4178.4,4178.3,2.39331785]
[1758737846407,7.1202,4178.4,4178.3,2.39331785]
[1758737846609,4.8257,4178.4,4178.3,2.39331785]
[1758737848798,4.1202,4178.4,4178.3,2.39331785]
[1758737849499,7.1202,4178.4,4178.3,3.08971785]
[1758737849698,3.0,4178.4,4178.3,3.63822874]
[1758737850298,3.0,4178.4,4178.3,18.13822874]
[1758737852905,3.0,4178.4,4178.3,3.63822874]
[1758737854109,3.0,4178.4,4178.3,3.66216191]
[1758737855736,3.0,4178.4,4178.3,7.66316191]
[1758737856071,3.0,4178.4,4178.3,7.63922874]
[1758737859443,3.0,4178.4,4178.3,21.67122874]
[1758737859969,3.0,4178.4,4178.3,7.63922874]
[1758737861438,3.0,4178.4,4178.3,2.94182874]
[1758737861639,3.7171,4178.4,4178.3,6.94282874]
[1758737862070,3.0,4178.4,4178.3,6.94282874]
[1758737862479,3.0,4178.4,4178.3,6.39431785]
[1758737862712,3.7128,4178.4,4178.3,2.39331785]
[1758737866108,4.0881051,4178.4,4178.3,2.39331785]
[1758737867107,3.7128,4178.4,4178.3,2.39331785]
[1758737868780,3.0,4178.3,4178.2,2.393346]
[1758737868981,3.0,4178.4,4178.1,0.002]
[1758737869209,0.7128,4178.3,4178.2,2.39337513]
[1758737871514,0.2393,4178.6,4178.5,2.3932033]
[1758737871720,4.7138,4178.6,4178.5,2.3932033]
[1758737871916,3.0,4178.5,4178.1,0.002]
[1758737872116,3.0,4178.5,4178.4,2.39326057]
[1758737872317,3.7128,4178.5,4178.4,2.39326057]
[1758737873513,4.08811161,4178.5,4178.4,2.39326057]
[1758737875283,0.1192,4178.4,4178.1,0.002]
[1758737875483,3.0,4178.2,4178.1,2.39543222]
[1758737875695,3.2393,4178.2,4178.1,2.39543222]
[1758737875914,0.37531161,4178.5,4178.4,2.39326057]
[1758737876218,4.84981161,4178.5,4178.4,2.39326057]
[1758737876420,4.4745,4178.5,4178.4,2.39326057]
[1758737876920,4.7138,4178.5,4178.4,2.39326057]
[1758737878017,3.1192,4178.4,4178.1,0.002]
[1758737878514,0.7128,4178.3,4178.2,2.39337513]
[1758737879023,7.7138,4178.3,4178.2,2.39337513]
[1758737880086,3.0,4178.3,4178.2,2.39337513]
[1758737880287,7.001,4178.3,4178.2,2.39337513]
[1758737880721,7.7005,4178.3,4178.2,2.39337513]
[1758737881295,7.2369,4178.3,4178.2,2.39337513]
[1758737881599,7.001,4178.3,4178.2,2.39337513]
[1758737882393,7.2369,4178.3,4178.2,2.39337513]
[1758737882600,7.001,4178.3,4178.2,2.39337513]
[1758737884018,7.2369,4178.3,4178.2,2.39337513]
[1758737884329,7.7005,4178.3,4178.2,2.39337513]
[1758737884631,0.1192,4178.2,4178.1,2.39543242]
[1758737885018,0.8187,4178.2,4178.1,2.39543242]
[1758737885812,3.1192,4178.2,4178.1,0.002]
[1758737886009,0.8187,4178.2,4178.1,0.002]
[1758737887412,3.8187,4178.2,4177.6,2.39571752]
[1758737887731,3.0,4178.0,4177.6,0.002]
[1758737887919,3.0,4177.8,4177.6,2.39571377]
[1758737888092,7.7005,4177.7,4177.6,2.39571377]
[1758737888703,7.001,4177.7,4177.6,2.39571377]
[1758737890113,3.0,4177.7,4177.6,3.06781377]
[1758737891529,3.1192,4177.7,4177.6,3.06781377]
[1758737891919,3.1192,4177.7,4177.6,2.62651377]
[1758737892434,3.1192,4177.7,4177.6,2.39571377]
[1758737894841,3.49456489,4177.7,4177.6,3.06431377]
[1758737896564,3.49456489,4177.7,4177.6,2.62651377]
[1758737897073,3.49456489,4177.7,4177.6,2.39571377]
[1758737897226,3.49456489,4177.7,4177.6,4.32466798]
[1758737897847,3.49456489,4177.7,4177.6,4.55546798]
[1758737898358,3.49456489,4177.7,4177.6,2.39571377]
[1758737899762,3.1192,4177.7,4177.6,3.06431377]
[1758737900663,3.1192,4177.7,4177.6,2.39571377]
[1758737903371,3.1192,4177.7,4177.6,2.62651377]
[1758737903571,3.1192,4177.7,4177.6,2.39571377]
[1758737903773,4.001,4178.1,4178.0,2.3934897]
[1758737904548,0.6796,4178.1,4178.0,2.3934897]
[1758737906989,1.05493763,4178.1,4178.0,2.3934897]
[1758737907715,1.05593763,4178.1,4178.0,2.3934897]
[1758737907984,0.37633763,4178.1,4178.0,2.3934897]
[1758737908866,0.61853763,4178.1,4178.0,2.3934897]
[1758737911251,0.37633763,4178.1,4178.0,2.3934897]
[1758737913604,0.37633763,4178.1,4178.0,3.08602459]
[1758737913809,0.001,4178.1,4178.0,4.03408326]
[1758737913969,0.001,4178.1,4178.0,3.59628326]
[1758737914175,0.001,4178.1,4178.0,2.3934897]
[1758737917195,0.001,4178.1,4177.6,0.002]
[1758737917196,0.4384,4178.1,4177.6,0.002]
[1758737917394,0.6796,4178.0,4177.9,2.39354699]
[1758737920781,0.6796,4178.0,4177.6,0.002]
[1758737920978,0.1192,4177.7,4177.6,2.39566212]
[1758737921219,0.7988,4177.7,4177.6,2.39566212]
[1758737926787,0.3614,4177.7,4177.6,2.39566212]
[1758737927026,0.1192,4177.7,4177.6,2.39566212]
[1758737927581,0.8121,4177.7,4177.6,2.39566212]
[1758737928226,1.1874742,4177.7,4177.6,2.39566212]
[1758737928606,0.7352742,4177.7,4177.6,2.39566212]
[1758737930114,0.4945742,4177.7,4177.6,2.39566212]
[1758737934394,1.1874742,4177.7,4177.6,2.39566212]
[1758737935024,1.1874742,4177.7,4177.1,0.02]
[1758737935237,3.0,4177.5,4177.4,2.39383348]
[1758737935426,3.6929,4177.5,4177.4,2.39383348]
[1758737935621,3.6929,4177.5,4177.1,0.02]
[1758737935622,3.0,4177.5,4177.1,0.02]
[1758737935805,0.6929,4177.4,4176.1,0.02]
[1758737936007,0.98799585,4177.4,4176.6,2.39424977]
[1758737936209,0.98799585,4177.4,4176.5,2.394335]
[1758737936210,0.6929,4177.3,4176.5,2.394335]
[1758737936408,0.6929,4177.3,4176.5,2.39429439]
[1758737936409,3.0,4177.1,4176.5,2.39429439]
[1758737936634,0.6929,4177.0,4176.1,0.02]
[1758737936833,1.41316477,4177.0,4176.4,2.39435397]
[1758737937127,0.6929,4176.9,4176.4,2.39435397]
[1758737937295,0.6929,4176.9,4176.1,2.41453812]
[1758737937296,0.6929,4176.9,4176.1,0.02]
[1758737937502,1.687,4177.1,4177.0,2.39402664]
[1758737938298,1.9277,4177.1,4177.0,2.39402664]
[1758737938797,1.687,4177.1,4177.0,2.39402664]
[1758737939211,2.3799,4177.1,4177.0,2.39402664]
[1758737939406,1.687,4177.1,4176.1,0.26147215]
[1758737939630,1.687,4177.1,4176.2,2.39452133]
[1758737939935,0.2356,4177.0,4176.2,2.39452133]
[1758737940101,1.687,4177.1,4176.6,2.39423687]
[1758737940302,0.6965,4177.0,4176.1,0.02]
[1758737940699,0.6965,4177.0,4176.9,2.39412004]
[1758737941342,1.687,4177.1,4177.0,2.39406272]
[1758737941554,2.3835,4177.1,4176.9,2.39410794]
[1758737941772,4.2356,4177.0,4176.9,2.39412004]
[1758737942075,4.0,4177.0,4176.9,2.39412004]
[1758737942360,7.0,4177.0,4176.9,2.39412004]
[1758737943062,3.0,4177.0,4176.9,2.39412004]
[1758737943666,3.0,4177.5,4176.9,1.15793172]
[1758737943978,3.4609,4178.0,4177.8,2.39356782]
[1758737944261,7.0,4177.9,4177.8,2.39356782]
[1758737944554,4.0,4177.9,4177.2,0.02393948]
[1758737944866,4.0,4177.9,4177.5,2.39377388]
[1758737944867,4.6965,4177.9,4177.5,2.39377388]
[1758737945069,0.6965,4177.8,4176.5,2.39434445]
[1758737945360,4.0,4177.9,4176.5,2.39434445]
[1758737945361,0.6965,4177.7,4176.5,2.39434445]
[1758737945548,0.6965,4177.7,4177.0,2.39400977]
[1758737945549,0.4609,4177.7,4177.0,2.39400977]
[1758737945748,0.1192,4176.9,4176.8,2.39417736]
[1758737946061,0.8157,4176.9,4176.7,2.39418363]
[1758737946358,3.0,4177.1,4176.7,2.39418363]
[1758737946359,0.6965,4176.8,4176.7,2.39418363]
[1758737946544,0.1192,4176.7,4176.5,2.39434335]
[1758737946724,0.6965,4176.6,4176.4,2.39439122]
[1758737946923,0.6965,4176.5,4176.4,2.39439122]
[1758737947324,0.72021981,4177.0,4176.4,2.39439122]
[1758737947566,3.0,4177.1,4176.4,2.39439122]
[1758737947567,0.6965,4176.9,4176.4,2.39439122]